fUSD/lending_fUSD_20260601
["ID","MTS","AMOUNT","RATE_DAILY","PERIOD"]
[423670034,1780293041000,-3126.0,0.00024,2]
[423670021,1780293041000,-860.0,0.00024,2]
[423670026,1780293041000,-1716.0,0.00024,2]
[423670019,1780293041000,-687.0,0.00024,2]
[423670024,1780293041000,-417.0,0.00024,2]
[423670039,1780293041000,-363.0,0.00024,2]
[423670032,1780293041000,-296.0,0.00024,2]
[423670043,1780293041000,-586.0,0.00024,2]
[423670068,1780293041000,-614.33,0.000242,14]
[423670041,1780293041000,-1622.0,0.00024,2]
[423670051,1780293041000,-24208.37015057,0.00024024,2]
[423670058,1780293041000,-4545.17756203,0.00024133,2]
[423670066,1780293041000,-500.0,0.00024194,2]
[423670054,1780293041000,-1368.36,0.00024088,2]
[423670060,1780293041000,-9563.57,0.00024174,2]
[423670064,1780293041000,-392.6,0.00024174,2]
[423670049,1780293041000,-767.571726,0.00024,3]
[423670045,1780293041000,-1197.0,0.00024,2]
[423670056,1780293041000,-242.65,0.0002411,2]
[423670047,1780293041000,-669.0,0.00024,2]
[423670062,1780293041000,-1560.7,0.00024174,2]
[423670207,1780293042000,-261.15,0.00027253,2]
[423670221,1780293042000,-1000.0,0.00027397,30]
[423670211,1780293042000,-209.3860962,0.00027397,2]
[423670213,1780293042000,-1500.0,0.00027397,2]
[423670209,1780293042000,-339.38,0.00027253,2]
[423670223,1780293042000,-323.2,0.000274,7]
[423670215,1780293042000,-434.91,0.00027397,2]
[423670217,1780293042000,-300.0,0.00027397,2]
[423670205,1780293042000,-500.0,0.00027231,2]
[423670201,1780293042000,-339.38,0.00026964,30]
[423670203,1780293042000,-615.0,0.00027137,2]
[423670229,1780293042000,-5208.98,0.000274,2]
[423670219,1780293042000,-8206.69,0.00027397,10]
[423670225,1780293042000,-710.07,0.000274,7]
[423670247,1780293042000,-2173.28280959,0.00027702,2]
[423670231,1780293042000,-5208.98,0.000274,2]
[423670233,1780293042000,-5208.98,0.000274,2]
[423670235,1780293042000,-5208.98,0.000274,2]
[423670237,1780293042000,-5208.98,0.000274,2]
[423670241,1780293042000,-339.38,0.00027541,7]
[423670239,1780293042000,-261.15,0.00027541,7]
[423670253,1780293042000,-1357.0,0.00027744,2]
[423670257,1780293042000,-1273.0,0.00027744,2]
[423670255,1780293042000,-525.0,0.00027744,2]
[423670245,1780293042000,-2173.28280959,0.0002768,2]
[423670243,1780293042000,-615.0,0.00027671,2]
[423670251,1780293042000,-3551.0,0.00027744,2]
[423670249,1780293042000,-929.0,0.00027744,2]
[423670199,1780293042000,-261.15,0.00026964,30]
[423670227,1780293042000,-3595.68,0.000274,14]
[423670183,1780293042000,-1278.8,0.00026296,2]
[423670138,1780293042000,-339.38,0.00025234,30]
[423670185,1780293042000,-261.15,0.00026388,2]
[423670260,1780293042000,-932.0,0.00027744,2]
[423670136,1780293042000,-261.15,0.00025234,30]
[423670132,1780293042000,-673.53095286,0.00025,2]
[423670142,1780293042000,-309.0,0.000254,2]
[423670140,1780293042000,-644.0,0.000254,2]
[423670134,1780293042000,-843.47,0.000252,7]
[423670146,1780293042000,-315.0,0.000254,2]
[423670144,1780293042000,-1000.0,0.000254,2]
[423670153,1780293042000,-261.15,0.00025523,2]
[423670154,1780293042000,-339.38,0.00025523,2]
[423670151,1780293042000,-25183.01123419,0.00025461,2]
[423670158,1780293042000,-500.0,0.00025668,2]
[423670149,1780293042000,-500.0,0.0002546,2]
[423670156,1780293042000,-193.52,0.00025644,2]
[423670179,1780293042000,-261.15,0.00026099,30]
[423670160,1780293042000,-984.51,0.00025786,2]
[423670164,1780293042000,-1560.7,0.00025786,2]
[423670162,1780293042000,-9563.57,0.00025786,2]
[423670170,1780293042000,-339.38,0.00025811,7]
[423670168,1780293042000,-261.15,0.00025811,7]
[423670172,1780293042000,-550.0,0.00026,2]
[423670175,1780293042000,-500.0,0.00026,2]
[423670177,1780293042000,-173.32,0.00026027,7]
[423670187,1780293042000,-339.38,0.00026388,2]
[423670189,1780293042000,-500.0,0.00026438,2]
[423670195,1780293042000,-261.15,0.00026676,7]
[423670193,1780293042000,-630.83611937,0.0002645,2]
[423670191,1780293042000,-2252.9751939,0.00026441,2]
[423670197,1780293042000,-339.38,0.00026676,7]
[423670181,1780293042000,-339.38,0.00026099,30]
[423670167,1780293042000,-392.6,0.00025786,2]
[423670273,1780293042000,-600.0,0.00028,2]
[423670262,1780293042000,-2173.28280959,0.00027777,2]
[423670279,1780293042000,-261.15,0.00028118,2]
[423670342,1780293042000,-191.18865937,0.00028544,2]
[423670344,1780293042000,-222.18682083,0.00028544,2]
[423670341,1780293042000,-237.17297462,0.00028544,2]
[423670346,1780293042000,-167.08960426,0.00028544,2]
[423670348,1780293042000,-155.56990815,0.00028544,2]
[423670352,1780293042000,-154.13624718,0.00028544,2]
[423670354,1780293042000,-2173.28280959,0.00028615,2]
[423670360,1780293042000,-174.1,0.0002863,2]
[423670350,1780293042000,-161.35566711,0.00028544,2]
[423670356,1780293042000,-2173.28280959,0.00028626,2]
[423670363,1780293042000,-238.21,0.0002863,30]
[423670365,1780293042000,-368.37,0.0002863,30]
[423670367,1780293042000,-464.62,0.0002863,30]
[423670369,1780293042000,-226.25,0.0002863,2]
[423670337,1780293042000,-160.17756582,0.00028544,2]
[423670372,1780293042000,-367.09,0.0002863,30]
[423670379,1780293042000,-226.25,0.00028661,7]
[423670383,1780293042000,-226.25,0.00028693,30]
[423670381,1780293042000,-174.1,0.00028693,30]
[423670385,1780293042000,-261.15,0.00028695,30]
[423670370,1780293042000,-238.15,0.0002863,30]
[423670376,1780293042000,-174.1,0.00028661,7]
[423670387,1780293042000,-339.38,0.00028695,30]
[423670389,1780293042000,-710.07,0.000287,7]
[423670391,1780293042000,-174.1,0.00028725,2]
[423670392,1780293042000,-226.25,0.00028725,2]
[423670393,1780293042000,-2173.28280959,0.00028731,2]
[423670396,1780293042000,-174.1,0.00028756,7]
[423670394,1780293042000,-2173.28280959,0.00028734,2]
[423670271,1780293042000,-2173.28280959,0.00027867,2]
[423670374,1780293042000,-467.66,0.0002863,30]
[423670339,1780293042000,-198.75762976,0.00028544,2]
[423670395,1780293042000,-615.0,0.00028739,3]
[423670331,1780293042000,-161.95619029,0.00028544,2]
[423670326,1780293042000,-289.24434078,0.00028544,2]
[423670264,1780293042000,-261.15,0.0002783,30]
[423670275,1780293042000,-2173.28280959,0.00028037,2]
[423670269,1780293042000,-2173.28280959,0.00027852,2]
[423670277,1780293042000,-458.5535233,0.00028048,15]
[423670284,1780293042000,-615.0,0.00028205,3]
[423670282,1780293042000,-339.38,0.00028118,2]
[423670296,1780293042000,-339.38,0.00028406,7]
[423670286,1780293042000,-1278.8,0.00028267,2]
[423670298,1780293042000,-182.79083525,0.00028418,2]
[423670299,1780293042000,-194.17347862,0.00028423,2]
[423670301,1780293042000,-173.142735,0.00028423,2]
[423670288,1780293042000,-3595.68,0.000283,14]
[423670304,1780293042000,-164.48780133,0.00028423,2]
[423670289,1780293042000,-2173.28280959,0.00028335,2]
[423670266,1780293042000,-339.38,0.0002783,30]
[423670292,1780293042000,-1109.60011597,0.00028369,3]
[423670306,1780293042000,-205.31326045,0.00028423,2]
[423670314,1780293042000,-482.28470179,0.00028526,2]
[423670335,1780293042000,-185.44719261,0.00028544,2]
[423670333,1780293042000,-163.77243736,0.00028544,2]
[423670321,1780293042000,-152.36190855,0.00028544,2]
[423670323,1780293042000,-279.26554621,0.00028544,2]
[423670328,1780293042000,-158.41899197,0.00028544,2]
[423670316,1780293042000,-2173.28280959,0.00028532,2]
[423670308,1780293042000,-153.03267857,0.00028472,2]
[423670319,1780293042000,-168.18132374,0.00028544,2]
[423670294,1780293042000,-261.15,0.00028406,7]
[423670324,1780293042000,-269.11509178,0.00028544,2]
[423670312,1780293042000,-1355.0,0.000285,3]
[423670310,1780293042000,-165.23619926,0.00028472,2]
[423670452,1780293043000,-157.0,0.00029,2]
[423670426,1780293043000,-2173.28280959,0.0002896,2]
[423670436,1780293043000,-189.58067434,0.00028971,2]
[423670446,1780293043000,-245.2,0.00029,30]
[423670449,1780293043000,-157.0,0.00029,2]
[423670460,1780293043000,-700.0,0.00029037,2]
[423670459,1780293043000,-1652.49,0.00029013,2]
[423670461,1780293043000,-2000.0,0.00029042,2]
[423670450,1780293043000,-157.0,0.00029,2]
[423670451,1780293043000,-157.0,0.00029,2]
[423670440,1780293043000,-226.25,0.00028979,30]
[423670448,1780293043000,-157.0,0.00029,2]
[423670465,1780293043000,-174.1,0.00029074,30]
[423670453,1780293043000,-630.83611937,0.00029008,2]
[423670456,1780293043000,-2000.0,0.00029013,2]
[423670454,1780293043000,-174.1,0.0002901,2]
[423670458,1780293043000,-2000.0,0.00029013,2]
[423670457,1780293043000,-2000.0,0.00029013,2]
[423670462,1780293043000,-1188.54,0.00029042,2]
[423670464,1780293043000,-226.25,0.00029042,7]
[423670466,1780293043000,-226.25,0.00029074,30]
[423670472,1780293043000,-238.21,0.00029132,30]
[423670468,1780293043000,-3595.68,0.000291,14]
[423670467,1780293043000,-2000.0,0.00029083,7]
[423670442,1780293043000,-526.72086226,0.00029,2]
[423670470,1780293043000,-226.25,0.00029105,2]
[423670455,1780293043000,-226.25,0.0002901,2]
[423670438,1780293043000,-174.1,0.00028979,30]
[423670413,1780293043000,-174.1,0.0002882,2]
[423670430,1780293043000,-238.15,0.00028964,2]
[423670469,1780293043000,-174.1,0.00029105,2]
[423670398,1780293043000,-226.25,0.00028756,7]
[423670402,1780293043000,-174.1,0.00028788,30]
[423670400,1780293043000,-2173.28280959,0.00028766,2]
[423670401,1780293043000,-1000.0,0.00028767,40]
[423670405,1780293043000,-238.21,0.00028797,7]
[423670408,1780293043000,-464.62,0.00028797,7]
[423670403,1780293043000,-226.25,0.00028788,30]
[423670406,1780293043000,-368.37,0.00028797,7]
[423670410,1780293043000,-367.09,0.00028797,7]
[423670409,1780293043000,-238.15,0.00028797,7]
[423670412,1780293043000,-2173.28280959,0.00028803,2]
[423670424,1780293043000,-174.1,0.00028947,7]
[423670444,1780293043000,-275.44,0.00029,30]
[423670423,1780293043000,-226.25,0.00028915,2]
[423670418,1780293043000,-226.25,0.00028852,7]
[423670417,1780293043000,-174.1,0.00028852,7]
[423670411,1780293043000,-467.66,0.00028797,7]
[423670420,1780293043000,-226.25,0.00028883,30]
[423670419,1780293043000,-174.1,0.00028883,30]
[423670415,1780293043000,-226.25,0.0002882,2]
[423670421,1780293043000,-323.2,0.000289,7]
[423670425,1780293043000,-226.25,0.00028947,7]
[423670427,1780293043000,-238.21,0.00028964,2]
[423670429,1780293043000,-464.62,0.00028964,2]
[423670428,1780293043000,-368.37,0.00028964,2]
[423670433,1780293043000,-467.66,0.00028964,2]
[423670431,1780293043000,-367.09,0.00028964,2]
[423670422,1780293043000,-174.1,0.00028915,2]
[423670473,1780293043000,-368.37,0.00029132,30]
[423670476,1780293043000,-367.09,0.00029132,30]
[423670463,1780293043000,-174.1,0.00029042,7]
[423670506,1780293043000,-1000.0,0.000297,7]
[423670508,1780293043000,-3126.0,0.00029724,30]
[423670509,1780293043000,-499.0,0.00029724,30]
[423670507,1780293043000,-296.0,0.00029724,30]
[423670510,1780293043000,-363.0,0.00029724,30]
[423670513,1780293043000,-1197.0,0.00029726,30]
[423670524,1780293043000,-177.66683072,0.00029754,2]
[423670523,1780293043000,-328.97560266,0.00029754,2]
[423670514,1780293043000,-669.0,0.00029726,30]
[423670512,1780293043000,-586.0,0.00029726,30]
[423670515,1780293043000,-156.23325827,0.00029749,2]
[423670520,1780293043000,-168.6079583,0.00029754,2]
[423670522,1780293043000,-346.28546999,0.00029754,2]
[423670516,1780293043000,-365.5816705,0.00029749,2]
[423670517,1780293043000,-190.8385146,0.00029749,2]
[423670518,1780293043000,-196.51731764,0.00029749,2]
[423670521,1780293043000,-388.34695724,0.00029754,2]
[423670519,1780293043000,-180.52886893,0.00029754,2]
[423670525,1780293043000,-410.62652089,0.00029754,2]
[423670527,1780293043000,-860.0,0.00029792,30]
[423670526,1780293043000,-687.0,0.00029792,30]
[423670528,1780293043000,-417.0,0.00029792,30]
[423670533,1780293043000,-330.47239852,0.00029805,2]
[423670532,1780293043000,-306.06535714,0.00029805,2]
[423670530,1780293043000,-1498.0,0.00029792,30]
[423670471,1780293043000,-166.66,0.00029111,2]
[423670529,1780293043000,-1716.0,0.00029792,30]
[423670504,1780293043000,-150.0,0.00029534,2]
[423670503,1780293043000,-2000.0,0.000295,64]
[423670531,1780293043000,-369.0,0.00029792,30]
[423670511,1780293043000,-1622.0,0.00029724,30]
[423670505,1780293043000,-710.07,0.000296,7]
[423670475,1780293043000,-238.15,0.00029132,30]
[423670483,1780293043000,-226.25,0.00029137,7]
[423670478,1780293043000,-200.0,0.00029137,2]
[423670484,1780293043000,-174.1,0.00029169,30]
[423670487,1780293043000,-226.25,0.00029201,2]
[423670482,1780293043000,-174.1,0.00029137,7]
[423670479,1780293043000,-200.0,0.00029137,2]
[423670477,1780293043000,-467.66,0.00029132,30]
[423670481,1780293043000,-200.67752615,0.00029137,2]
[423670480,1780293043000,-200.0,0.00029137,2]
[423670486,1780293043000,-174.1,0.00029201,2]
[423670485,1780293043000,-226.25,0.00029169,30]
[423670489,1780293043000,-226.4,0.00029232,7]
[423670474,1780293043000,-464.62,0.00029132,30]
[423670488,1780293043000,-174.1,0.00029232,7]
[423670501,1780293043000,-2050.45933268,0.000295,2]
[423670500,1780293043000,-2050.45933268,0.000295,2]
[423670502,1780293043000,-2050.45933268,0.000295,2]
[423670496,1780293043000,-467.66,0.00029299,7]
[423670499,1780293043000,-157.0,0.00029411,3]
[423670495,1780293043000,-367.09,0.00029299,7]
[423670498,1780293043000,-579.4,0.000294,7]
[423670493,1780293043000,-464.62,0.00029299,7]
[423670492,1780293043000,-368.37,0.00029299,7]
[423670494,1780293043000,-238.15,0.00029299,7]
[423670490,1780293043000,-615.0,0.00029273,4]
[423670491,1780293043000,-238.21,0.00029299,7]
[423670497,1780293043000,-5531.0,0.000293,5]
[423670585,1780293044000,-434.91,0.00030137,2]
[423670570,1780293044000,-273591.6351936,0.0002988,7]
[423670568,1780293044000,-308.27249437,0.0002988,2]
[423670567,1780293044000,-202.56746279,0.0002988,2]
[423670564,1780293044000,-202.33468406,0.0002988,2]
[423670573,1780293044000,-2000.0,0.00029999,21]
[423670569,1780293044000,-221.91478316,0.0002988,2]
[423670571,1780293044000,-293.76,0.00029999,3]
[423670566,1780293044000,-226.2217868,0.0002988,2]
[423670563,1780293044000,-197.4607168,0.0002988,2]
[423670572,1780293044000,-293.77,0.00029999,3]
[423670575,1780293044000,-162.0,0.0003,14]
[423670577,1780293044000,-323.2,0.000301,7]
[423670574,1780293044000,-650.0,0.0003,2]
[423670578,1780293044000,-3595.68,0.000301,14]
[423670576,1780293044000,-166.66,0.00030072,2]
[423670580,1780293044000,-185.06963162,0.0003013,7]
[423670581,1780293044000,-500.0,0.00030136,2]
[423670583,1780293044000,-155.00690699,0.00030136,2]
[423670582,1780293044000,-2000.0,0.00030136,25]
[423670584,1780293044000,-155.00690699,0.00030136,2]
[423670586,1780293044000,-200.0,0.00030137,2]
[423670588,1780293044000,-333.28070525,0.00030137,2]
[423670590,1780293044000,-1000.0,0.00030137,3]
[423670565,1780293044000,-322.71133421,0.0002988,2]
[423670579,1780293044000,-185.06963162,0.0003013,7]
[423670562,1780293044000,-311.1398163,0.0002988,2]
[423670546,1780293044000,-174.3113784,0.0002988,2]
[423670559,1780293044000,-444.37364166,0.0002988,2]
[423670536,1780293044000,-336.36264748,0.0002988,2]
[423670534,1780293044000,-615.0,0.00029807,4]
[423670535,1780293044000,-2000.0,0.00029863,100]
[423670538,1780293044000,-558.53109243,0.0002988,2]
[423670537,1780293044000,-304.72381711,0.0002988,2]
[423670539,1780293044000,-538.23018357,0.0002988,2]
[423670541,1780293044000,-170.59001071,0.0002988,2]
[423670542,1780293044000,-316.83798394,0.0002988,2]
[423670545,1780293044000,-202.99806285,0.0002988,2]
[423670540,1780293044000,-578.48868156,0.0002988,2]
[423670544,1780293044000,-196.13530506,0.0002988,2]
[423670543,1780293044000,-323.91238059,0.0002988,2]
[423670560,1780293044000,-191.17928012,0.0002988,2]
[423670548,1780293044000,-226.66811233,0.0002988,2]
[423670547,1780293044000,-216.27775721,0.0002988,2]
[423670549,1780293044000,-370.89438522,0.0002988,2]
[423670551,1780293044000,-320.35513163,0.0002988,2]
[423670552,1780293044000,-167.72416141,0.0002988,2]
[423670554,1780293044000,-474.34594924,0.0002988,2]
[423670550,1780293044000,-327.54487471,0.0002988,2]
[423670553,1780293044000,-397.51525953,0.0002988,2]
[423670561,1780293044000,-334.17920853,0.0002988,2]
[423670556,1780293044000,-191.62259927,0.0002988,2]
[423670557,1780293044000,-158.64064652,0.0002988,2]
[423670555,1780293044000,-207.82923523,0.0002988,2]
[423670558,1780293044000,-382.37731874,0.0002988,2]
[423670591,1780293044000,-1179.29,0.00030137,5]
[423670589,1780293044000,-1000.0,0.00030137,50]
[423670634,1780293044000,-1622.0,0.00030724,30]
[423670595,1780293044000,-242.9,0.00030137,2]
[423670620,1780293044000,-244.10771468,0.00030642,2]
[423670624,1780293044000,-241.52849641,0.00030642,2]
[423670625,1780293044000,-493.46340399,0.00030642,2]
[423670626,1780293044000,-355.33366143,0.00030642,2]
[423670636,1780293044000,-1197.0,0.00030726,30]
[423670635,1780293044000,-586.0,0.00030726,30]
[423670630,1780293044000,-296.0,0.00030724,30]
[423670631,1780293044000,-3126.0,0.00030724,30]
[423670627,1780293044000,-615.93978134,0.00030642,2]
[423670628,1780293044000,-459.09803571,0.00030694,2]
[423670633,1780293044000,-363.0,0.00030724,30]
[423670632,1780293044000,-499.0,0.00030724,30]
[423670618,1780293044000,-361.05773786,0.00030642,2]
[423670629,1780293044000,-495.70859778,0.00030694,2]
[423670648,1780293044000,-504.54397123,0.0003077,2]
[423670641,1780293044000,-929.0,0.00030744,2]
[423670644,1780293044000,-525.0,0.00030744,2]
[423670646,1780293044000,-932.0,0.00030744,2]
[423670638,1780293044000,-271.552087,0.00030744,7]
[423670640,1780293044000,-271.552087,0.00030744,7]
[423670647,1780293044000,-252.26038594,0.0003077,2]
[423670642,1780293044000,-3551.0,0.00030744,2]
[423670645,1780293044000,-1273.0,0.00030744,2]
[423670643,1780293044000,-1357.0,0.00030744,2]
[423670649,1780293044000,-457.08572566,0.0003077,2]
[423670594,1780293044000,-1221.31782535,0.00030137,25]
[423670639,1780293044000,-271.552087,0.00030744,7]
[423670619,1780293044000,-582.52043587,0.00030642,2]
[423670637,1780293044000,-669.0,0.00030726,30]
[423670621,1780293044000,-228.02464957,0.00030642,2]
[423670622,1780293044000,-297.59079632,0.00030642,2]
[423670597,1780293044000,-244.63,0.00030137,2]
[423670593,1780293044000,-29186.42159122,0.00030137,25]
[423670587,1780293044000,-166.64035262,0.00030137,2]
[423670592,1780293044000,-251.54,0.00030137,2]
[423670598,1780293044000,-244.63,0.00030137,2]
[423670596,1780293044000,-244.63,0.00030137,2]
[423670610,1780293044000,-166.13,0.00030411,120]
[423670611,1780293044000,-312.46651654,0.00030637,2]
[423670605,1780293044000,-210.89404893,0.00030239,2]
[423670604,1780293044000,-210.89404893,0.00030239,2]
[423670599,1780293044000,-244.62,0.00030137,2]
[423670601,1780293044000,-159.2450998,0.00030137,2]
[423670600,1780293044000,-159.2450998,0.00030137,2]
[423670608,1780293044000,-615.0,0.00030341,5]
[423670614,1780293044000,-297.92748254,0.00030637,2]
[423670617,1780293044000,-337.21591659,0.00030642,2]
[423670616,1780293044000,-393.03463528,0.00030637,2]
[423670612,1780293044000,-548.37250574,0.00030637,2]
[423670615,1780293044000,-381.6770292,0.00030637,2]
[423670613,1780293044000,-161.00014163,0.00030637,2]
[423670623,1780293044000,-519.42820499,0.00030642,2]
[423670607,1780293044000,-562.02,0.00030282,7]
[423670609,1780293044000,-843.47,0.000304,7]
[423670602,1780293044000,-383.63,0.00030236,30]
[423670603,1780293044000,-1278.8,0.00030239,2]
[423670606,1780293044000,-293.57025797,0.00030274,40]
[423670701,1780293045000,-466.70972446,0.0003077,2]
[423670691,1780293045000,-383.24519855,0.0003077,2]
[423670694,1780293045000,-295.62914593,0.0003077,2]
[423670696,1780293045000,-666.56046249,0.0003077,2]
[423670698,1780293045000,-228.26962628,0.0003077,2]
[423670689,1780293045000,-276.21463954,0.0003077,2]
[423670681,1780293045000,-215.74267962,0.0003077,2]
[423670683,1780293045000,-259.09217639,0.0003077,2]
[423670680,1780293045000,-150.10389773,0.0003077,2]
[423670685,1780293045000,-711.51892386,0.0003077,2]
[423670684,1780293045000,-293.94057564,0.0003077,2]
[423670693,1780293045000,-573.56597811,0.0003077,2]
[423670682,1780293045000,-167.00088501,0.0003077,2]
[423670697,1780293045000,-382.35856024,0.0003077,2]
[423670710,1780293045000,-462.40874155,0.0003077,2]
[423670699,1780293045000,-501.26881279,0.0003077,2]
[423670695,1780293045000,-297.16319609,0.0003077,2]
[423670690,1780293045000,-297.19989637,0.0003077,2]
[423670700,1780293045000,-236.25577216,0.0003077,2]
[423670703,1780293045000,-394.9214336,0.0003077,2]
[423670713,1780293045000,-186.5809547,0.00030791,30]
[423670704,1780293045000,-404.66936812,0.0003077,2]
[423670706,1780293045000,-295.21389435,0.0003077,2]
[423670702,1780293045000,-244.51911616,0.0003077,2]
[423670705,1780293045000,-484.06700132,0.0003077,2]
[423670707,1780293045000,-452.44357361,0.0003077,2]
[423670712,1780293045000,-443.82956632,0.0003077,2]
[423670711,1780293045000,-263.99994592,0.0003077,2]
[423670678,1780293045000,-596.27288929,0.0003077,2]
[423670692,1780293045000,-317.28129304,0.0003077,2]
[423670679,1780293045000,-280.31392988,0.0003077,2]
[423670661,1780293045000,-499.92105787,0.0003077,2]
[423670687,1780293045000,-415.65847045,0.0003077,2]
[423670650,1780293045000,-222.07155043,0.0003077,2]
[423670660,1780293045000,-207.61239294,0.0003077,2]
[423670708,1780293045000,-405.13492558,0.0003077,2]
[423670662,1780293045000,-295.39213441,0.0003077,2]
[423670651,1780293045000,-244.91831627,0.0003077,2]
[423670655,1780293045000,-837.79663864,0.0003077,2]
[423670656,1780293045000,-807.34527535,0.0003077,2]
[423670657,1780293045000,-867.73302233,0.0003077,2]
[423670654,1780293045000,-229.05008707,0.0003077,2]
[423670652,1780293045000,-220.56760982,0.0003077,2]
[423670658,1780293045000,-341.18002142,0.0003077,2]
[423670653,1780293045000,-206.84879939,0.0003077,2]
[423670659,1780293045000,-475.25697592,0.0003077,2]
[423670663,1780293045000,-485.86857088,0.0003077,2]
[423670664,1780293045000,-392.27061011,0.0003077,2]
[423670674,1780293045000,-298.75922907,0.0003077,2]
[423670667,1780293045000,-155.33198632,0.0003077,2]
[423670666,1780293045000,-348.62275681,0.0003077,2]
[423670668,1780293045000,-295.06652447,0.0003077,2]
[423670665,1780293045000,-405.9961257,0.0003077,2]
[423670670,1780293045000,-453.33622465,0.0003077,2]
[423670671,1780293045000,-556.34157782,0.0003077,2]
[423670669,1780293045000,-432.55551441,0.0003077,2]
[423670673,1780293045000,-480.53269745,0.0003077,2]
[423670672,1780293045000,-491.31731207,0.0003077,2]
[423670676,1780293045000,-279.02122065,0.0003077,2]
[423670675,1780293045000,-335.44832282,0.0003077,2]
[423670686,1780293045000,-295.09431206,0.0003077,2]
[423670677,1780293045000,-163.16080616,0.0003077,2]
[423670688,1780293045000,-280.77849393,0.0003077,2]
[423670714,1780293045000,-687.0,0.00030792,30]
[423670709,1780293045000,-154.60164612,0.0003077,2]
[423670715,1780293045000,-860.0,0.00030792,30]
[423670752,1780293045000,-500.0,0.00031328,120]
[423670747,1780293045000,-821.25304178,0.00031234,2]
[423670749,1780293045000,-612.13071428,0.00031287,2]
[423670750,1780293045000,-660.94479704,0.00031287,2]
[423670748,1780293045000,-268.18813164,0.00031234,2]
[423670753,1780293045000,-1368.36,0.00031328,120]
[423670757,1780293045000,-500.0,0.00031328,2]
[423670767,1780293045000,-500.0,0.00031328,2]
[423670768,1780293045000,-500.0,0.00031328,2]
[423670756,1780293045000,-500.0,0.00031328,2]
[423670758,1780293045000,-500.0,0.00031328,2]
[423670762,1780293045000,-500.0,0.00031328,2]
[423670759,1780293045000,-500.0,0.00031328,2]
[423670764,1780293045000,-500.0,0.00031328,2]
[423670755,1780293045000,-500.0,0.00031328,2]
[423670763,1780293045000,-500.0,0.00031328,2]
[423670761,1780293045000,-500.0,0.00031328,2]
[423670760,1780293045000,-500.0,0.00031328,2]
[423670765,1780293045000,-500.0,0.00031328,2]
[423670772,1780293045000,-500.0,0.00031328,2]
[423670771,1780293045000,-500.0,0.00031328,2]
[423670774,1780293045000,-500.0,0.00031328,2]
[423670773,1780293045000,-500.0,0.00031328,2]
[423670770,1780293045000,-500.0,0.00031328,2]
[423670769,1780293045000,-500.0,0.00031328,2]
[423670776,1780293045000,-500.0,0.00031328,2]
[423670779,1780293045000,-500.0,0.00031328,2]
[423670716,1780293045000,-417.0,0.00030792,30]
[423670775,1780293045000,-500.0,0.00031328,2]
[423670777,1780293045000,-500.0,0.00031328,2]
[423670766,1780293045000,-500.0,0.00031328,2]
[423670751,1780293045000,-1016.94,0.00031311,30]
[423670778,1780293045000,-500.0,0.00031328,2]
[423670746,1780293045000,-657.95120532,0.00031234,2]
[423670754,1780293045000,-1368.36,0.00031328,120]
[423670726,1780293045000,-1016.94,0.00031078,30]
[423670717,1780293045000,-1716.0,0.00030792,30]
[423670727,1780293045000,-200.0,0.00031096,2]
[423670718,1780293045000,-1498.0,0.00030792,30]
[423670722,1780293045000,-1016.94,0.00031,30]
[423670723,1780293045000,-157.08,0.00031,2]
[423670721,1780293045000,-615.0,0.00030875,6]
[423670719,1780293045000,-369.0,0.00030792,30]